bitfinex/quotes_BTCUSD_20220218
["timestamp","ask_amount","ask_price","bid_price","bid_amount"]
[1645218836650,6.7e-05,40060.0,40056.0,0.11520692]
[1645218836894,0.00033618,40061.0,40056.0,0.11520692]
[1645218837097,0.010219,40062.0,40053.0,0.124853]
[1645218837098,6.7e-05,40060.0,40053.0,0.124853]
[1645218837295,6.7e-05,40060.0,40051.0,0.00280134]
[1645218837597,0.062501,40060.0,40052.0,0.33758991]
[1645218837995,0.12487029,40060.0,40052.0,0.48988529]
[1645218838194,6.7e-05,40058.0,40052.0,0.48988529]
[1645218839095,0.00033618,40059.0,40052.0,0.15229538]
[1645218839294,0.29048495,40060.0,40052.0,0.15229538]
[1645218839594,6.69e-05,40057.0,40052.0,0.15229538]
[1645218840398,0.00033618,40059.0,40052.0,0.15229538]
[1645218840642,6.69e-05,40057.0,40052.0,0.15229538]
[1645218841241,0.00040308,40057.0,40052.0,0.15229538]
[1645218841444,6.69e-05,40057.0,40052.0,0.15229538]
[1645218841646,0.06277418,40058.0,40052.0,0.15229538]
[1645218841845,0.00040308,40057.0,40052.0,0.15229538]
[1645218842043,6.69e-05,40057.0,40052.0,0.15229538]
[1645218842243,0.00040308,40057.0,40050.0,0.0093]
[1645218842444,6.69e-05,40057.0,40050.0,0.0093]
[1645218842644,6.69e-05,40057.0,40052.0,0.3244741]
[1645218842849,0.06277418,40058.0,40050.0,0.0093]
[1645218843045,6.691e-05,40056.0,40050.0,0.0093]
[1645218843446,0.00040309,40056.0,40050.0,0.0093]
[1645218844048,0.010219,40053.0,40048.0,0.1887]
[1645218844488,0.010219,40053.0,40046.0,0.30964858]
[1645218845089,0.04996691,40055.0,40043.0,0.0096]
[1645218845090,0.010219,40047.0,40043.0,0.0096]
[1645218846089,0.15871334,40047.0,40043.0,0.0096]
[1645218846294,0.20871334,40047.0,40043.0,0.0096]
[1645218846689,0.27117014,40047.0,40043.0,0.0096]
[1645218847089,0.27117014,40047.0,40041.0,0.04363236]
[1645218847490,0.33362714,40047.0,40041.0,0.04363236]
[1645218848040,0.1851328,40047.0,40041.0,0.04363236]
[1645218848239,0.122676,40047.0,40041.0,0.04363236]
[1645218848640,0.060219,40047.0,40041.0,0.04363236]
[1645218848842,0.010219,40047.0,40041.0,0.04363236]
[1645218849242,0.15562901,40047.0,40041.0,0.04363236]
[1645218849641,0.25552901,40047.0,40041.0,0.04363236]
[1645218850241,0.110119,40047.0,40041.0,0.04363236]
[1645218850844,0.00113302,40046.0,40041.0,0.04363236]
[1645218851147,0.00113302,40046.0,40043.0,0.14063695]
[1645218851642,0.00113302,40046.0,40043.0,0.35274563]
[1645218852096,0.00113302,40046.0,40044.0,0.0097]
[1645218852496,0.00113302,40046.0,40044.0,0.22180868]
[1645218853096,0.00113302,40046.0,40044.0,0.53822084]
[1645218853698,0.00113302,40046.0,40045.0,0.52852084]
[1645218854099,0.00217502,40047.0,40046.0,1.40008582]
[1645218854300,0.00217502,40047.0,40046.0,1.61204858]
[1645218854500,0.00217502,40047.0,40046.0,1.40008582]
[1645218854800,0.00217502,40047.0,40046.0,1.66522167]
[1645218855198,0.00217502,40047.0,40046.0,1.40008582]
[1645218855845,0.010219,40050.0,40046.0,1.66522167]
[1645218856041,0.010219,40050.0,40049.0,0.062429]
[1645218856240,0.010219,40051.0,40049.0,0.32316093]
[1645218856443,7.036e-05,40053.0,40049.0,0.32316093]
[1645218856444,0.010219,40052.0,40049.0,0.32316093]
[1645218859788,0.12654831,40057.0,40049.0,0.33337993]
[1645218859989,6.656e-05,40053.0,40049.0,0.010219]
[1645218860691,6.656e-05,40053.0,40047.0,0.21199587]
[1645218860891,0.33726998,40057.0,40050.0,0.25429074]
[1645218861091,6.218e-05,40053.0,40047.0,0.21199587]
[1645218861291,6.218e-05,40053.0,40047.0,0.27443187]
[1645218861491,6.218e-05,40053.0,40051.0,0.00441924]
[1645218861690,0.00074904,40048.0,40047.0,0.27443187]
[1645218861890,0.00074904,40048.0,40047.0,0.21199587]
[1645218862596,0.00074904,40048.0,40046.0,0.01007282]
[1645218862792,0.22892039,40048.0,40046.0,8.582e-05]
[1645218863046,0.31641216,40047.0,40046.0,8.582e-05]
[1645218863247,0.36631216,40047.0,40046.0,8.582e-05]
[1645218863645,0.50869448,40047.0,40046.0,8.582e-05]
[1645218864047,0.19228232,40047.0,40046.0,8.582e-05]
[1645218864246,0.50869448,40047.0,40046.0,8.582e-05]
[1645218864846,0.60869448,40047.0,40046.0,8.582e-05]
[1645218869206,1.37029448,40047.0,40046.0,8.582e-05]
[1645218869401,1.73076747,40047.0,40046.0,8.582e-05]
[1645218869701,1.56725884,40047.0,40046.0,8.582e-05]
[1645218869898,1.83076747,40047.0,40046.0,8.582e-05]
[1645218870299,1.9277218,40047.0,40046.0,5.82e-06]
[1645218870553,0.7616,40044.0,40038.0,0.001271]
[1645218870757,0.7616,40042.0,40030.0,0.21199587]
[1645218870955,0.8616,40042.0,40029.0,0.39899587]
[1645218871159,0.8115,40041.0,40030.0,0.21199587]
[1645218871360,0.33122574,40036.0,40030.0,0.21199587]
[1645218871559,0.33122574,40036.0,40029.0,0.187]
[1645218871560,0.0499,40035.0,40029.0,0.21199587]
[1645218871760,0.112381,40035.0,40029.0,0.21199587]
[1645218871960,0.17486126,40035.0,40029.0,0.21199587]
[1645218872659,0.12590461,40034.0,40028.0,0.51049542]
[1645218872859,0.0499,40033.0,40028.0,0.51049542]
[1645218873160,0.062477,40032.0,40028.0,0.21199587]
[1645218873561,0.0499,40033.0,40028.0,0.21199587]
[1645218873960,0.0499,40033.0,40029.0,0.21199587]
[1645218874398,0.0499,40033.0,40028.0,0.21199587]
[1645218874597,0.0499,40033.0,40027.0,0.21199587]
[1645218875197,0.0499,40033.0,40028.0,0.26697064]
[1645218875598,0.0499,40033.0,40028.0,0.47896651]
[1645218875798,0.0499,40033.0,40028.0,0.26697064]
[1645218875999,0.0499,40033.0,40028.0,0.47896651]
[1645218876898,0.062477,40032.0,40028.0,0.47896651]
[1645218877397,0.062477,40032.0,40027.0,0.21199587]
[1645218877598,0.062477,40032.0,40026.0,0.21199587]
[1645218878446,0.062477,40032.0,40028.0,0.33422296]
[1645218878647,0.0499,40033.0,40028.0,0.33422296]
[1645218879248,0.00459464,40031.0,40028.0,0.33422296]
[1645218881450,0.00019418,40031.0,40028.0,0.33422296]
[1645218882899,0.00019418,40031.0,40028.0,0.54621883]
[1645218883102,0.00019418,40031.0,40028.0,0.60868583]
[1645218884098,0.00019418,40031.0,40028.0,0.54621883]
[1645218884301,0.0499,40033.0,40030.0,0.00340945]
[1645218885099,0.0499,40033.0,40032.0,0.14178019]
[1645218885944,0.0499,40033.0,40030.0,0.00340945]
[1645218889307,0.0499,40033.0,40032.0,0.00323059]
[1645218889503,0.112377,40033.0,40032.0,0.00323059]
[1645218891603,0.83671764,40037.0,40032.0,0.00323059]
[1645218891904,0.0499,40033.0,40032.0,0.00323059]
[1645218894149,0.0499,40033.0,40032.0,0.00687303]
[1645218894549,0.06247,40037.0,40032.0,0.00687303]
[1645218895550,0.82407,40037.0,40032.0,0.00687303]
[1645218895750,0.06247,40037.0,40032.0,0.00687303]
[1645218897799,0.12494164,40037.0,40032.0,0.00687303]
[1645218899403,0.00428115,40036.0,40029.0,0.13576519]
[1645218899604,0.00428115,40036.0,40029.0,0.34776106]
[1645218899803,0.00428115,40036.0,40029.0,0.65773772]
[1645218900009,0.00428115,40036.0,40030.0,0.21199587]
[1645218900207,0.00428115,40036.0,40032.0,0.22221487]
[1645218900410,0.00428115,40036.0,40033.0,0.52197253]
[1645218902548,0.00428115,40036.0,40034.0,0.21199587]
[1645218902746,0.00092294,40036.0,40034.0,0.21199587]
[1645218903347,0.00092294,40036.0,40034.0,0.22199587]
[1645218903545,0.00092294,40036.0,40035.0,0.52197253]
[1645218904306,0.00428471,40036.0,40035.0,0.52197253]
[1645218904497,0.00428471,40036.0,40035.0,0.30997666]
[1645218904697,0.00428471,40036.0,40035.0,0.32019566]
[1645218905101,0.00428471,40036.0,40035.0,0.58533151]
[1645218905299,0.00428471,40036.0,40035.0,0.32019566]
[1645218905498,0.00428471,40036.0,40035.0,0.63835868]
[1645218905898,0.00428471,40036.0,40035.0,0.32019566]
[1645218906499,0.00428471,40036.0,40035.0,0.63835868]
[1645218907301,0.00428471,40036.0,40035.0,0.32019566]
[1645218908946,0.11660723,40036.0,40035.0,0.32019566]
[1645218909545,0.11660723,40036.0,40035.0,0.85262036]
[1645218909744,0.11660723,40036.0,40035.0,0.32019566]
[1645218910945,0.11660723,40036.0,40035.0,0.48135115]
[1645218911350,0.11478456,40036.0,40035.0,0.85237579]
[1645218912903,0.11478456,40036.0,40035.0,0.54239913]
[1645218913097,0.11478456,40036.0,40035.0,0.010219]
[1645218913497,0.11478456,40036.0,40035.0,0.38124364]
[1645218913899,0.11478456,40036.0,40035.0,0.31799314]
[1645218914198,0.11478456,40036.0,40034.0,0.32799314]
[1645218914398,0.05852554,40036.0,40034.0,0.32799314]
[1645218914599,0.00226652,40036.0,40034.0,0.32799314]
[1645218914800,0.00226652,40036.0,40035.0,0.007]
[1645218915648,0.00226652,40036.0,40035.0,0.32499314]
[1645218915848,0.00226652,40036.0,40035.0,0.42499314]
[1645218916049,0.00134358,40036.0,40035.0,0.11376753]
[1645218917251,0.00134358,40036.0,40035.0,0.27875694]
[1645218917450,0.00134358,40036.0,40035.0,0.01376753]
[1645218919707,0.0576026,40036.0,40035.0,0.01376753]
[1645218919907,0.11386162,40036.0,40035.0,0.22577301]
[1645218920309,0.11386162,40036.0,40035.0,0.01376753]
[1645218920711,0.2693209,40036.0,40035.0,0.01376753]
[1645218921411,0.11386162,40036.0,40035.0,0.011503]
[1645218922009,0.02255182,40039.0,40035.0,0.011503]
[1645218922614,0.06246425,40038.0,40035.0,0.011503]
[1645218923552,0.12493025,40038.0,40035.0,0.011503]
[1645218924052,0.062466,40038.0,40035.0,0.011503]
[1645218926459,0.062466,40038.0,40037.0,0.00244354]
[1645218926899,0.06246123,40041.0,40037.0,0.00244354]
[1645218926900,0.062458,40040.0,40037.0,0.00244354]
[1645218930852,0.062458,40040.0,40035.0,0.21900548]
[1645218931349,0.062458,40040.0,40035.0,0.007]
[1645218931750,0.062458,40040.0,40035.0,0.21900548]
[1645218932251,0.062458,40040.0,40035.0,0.007]
[1645218933850,0.062458,40040.0,40035.0,0.21900548]
[1645218934300,0.062458,40040.0,40035.0,0.007]
[1645218934498,0.062458,40040.0,40035.0,0.21900548]
[1645218938053,0.062458,40040.0,40037.0,0.13795777]
[1645218938353,0.43944841,40044.0,40037.0,0.34996325]
[1645218938354,0.062455,40042.0,40037.0,0.34996325]
[1645218938554,0.1206,40044.0,40038.0,0.21200548]
[1645218938757,0.0076,40045.0,40038.0,0.21200548]
[1645218938954,0.0076,40045.0,40038.0,0.22222448]
[1645218939154,0.0076,40045.0,40042.0,0.33949262]
[1645218939557,0.0076,40045.0,40038.0,0.22222448]
[1645218939757,0.0076,40045.0,40039.0,0.21200548]
[1645218940755,0.0076,40045.0,40042.0,0.33968426]
[1645218940955,0.062451,40046.0,40042.0,0.33968426]
[1645218941154,0.06245378,40045.0,40042.0,0.33968426]
[1645218941364,0.112451,40046.0,40042.0,0.33968426]
[1645218941908,0.062451,40046.0,40042.0,0.33968426]
[1645218942109,0.062451,40046.0,40042.0,0.55168974]
[1645218942309,0.062454,40045.0,40042.0,0.55168974]
[1645218943107,0.062454,40045.0,40041.0,0.21200548]
[1645218943509,0.062454,40045.0,40040.0,0.010219]
[1645218943706,0.062454,40045.0,40038.0,0.010219]
[1645218944308,0.12338223,40043.0,40038.0,0.010219]
[1645218944609,0.062466,40042.0,40038.0,0.010219]
[1645218945853,0.062466,40042.0,40037.0,0.0099]
[1645218948556,0.062466,40042.0,40038.0,0.2119824]
[1645218949904,0.062463,40042.0,40038.0,0.2119824]
[1645218950301,0.12330068,40043.0,40038.0,0.2119824]
[1645218951097,0.12330068,40043.0,40040.0,0.00468519]
[1645218951998,0.0023519,40039.0,40038.0,0.21201242]
[1645218953149,0.0023519,40039.0,40037.0,0.22191242]
[1645218953350,0.0023519,40039.0,40036.0,0.21201242]
[1645218953549,0.0023519,40039.0,40035.0,0.21201242]
[1645218953949,0.0023519,40039.0,40036.0,0.21201242]
[1645218955450,0.0023519,40039.0,40035.0,0.21201242]
[1645218955650,0.0023519,40039.0,40036.0,0.21201242]
[1645218955850,0.0023519,40039.0,40038.0,0.00627848]
[1645218960305,0.0023519,40039.0,40038.0,0.2182909]
[1645218960557,0.0023519,40039.0,40038.0,0.00627848]
[1645218960758,0.0023519,40039.0,40038.0,0.21841324]
[1645218960958,0.0023519,40039.0,40038.0,0.00627848]
[1645218961658,0.00318943,40039.0,40037.0,0.26498941]
[1645218965306,0.00318943,40039.0,40037.0,0.26302613]
[1645218966308,0.00318943,40039.0,40035.0,0.31799314]
[1645218967708,0.00318943,40039.0,40036.0,0.27257397]
[1645218968954,0.00318943,40039.0,40037.0,0.007]
[1645218970358,0.00318943,40039.0,40037.0,0.32499314]
[1645218970959,0.00318943,40039.0,40038.0,0.30506058]
[1645218971260,0.00318943,40039.0,40038.0,0.95683171]
[1645218971463,0.00092664,40039.0,40038.0,0.68580707]
[1645218971906,0.00060962,40039.0,40038.0,0.68580707]
[1645218972105,0.00015359,40039.0,40038.0,0.38074649]
[1645218972307,0.00015359,40039.0,40038.0,0.38974649]
[1645218972707,0.00015359,40039.0,40038.0,0.28974649]
[1645218972908,0.00015359,40039.0,40038.0,0.38974649]
[1645218973707,0.00015359,40039.0,40038.0,0.69480707]
[1645218975110,0.00015359,40039.0,40038.0,0.70479407]
[1645218975309,0.00015359,40039.0,40038.0,0.69480707]
[1645218975751,0.010219,40047.0,40038.0,0.70116485]
[1645218975951,0.010219,40047.0,40044.0,0.39651843]
[1645218976150,0.00074904,40048.0,40045.0,0.27468434]
[1645218976352,0.00074904,40048.0,40047.0,0.21173236]
[1645218976551,0.00074904,40048.0,40046.0,0.21173236]
[1645218978155,0.00074904,40048.0,40047.0,0.21173236]
[1645218978655,0.00074904,40048.0,40047.0,0.30506058]
[1645218978854,0.00074904,40048.0,40047.0,0.56984492]
[1645218979055,0.00074904,40048.0,40047.0,0.30506058]
[1645218979311,0.00074904,40048.0,40047.0,0.56963673]
[1645218980506,0.00074904,40048.0,40047.0,0.30506058]
[1645218981307,0.00074904,40048.0,40047.0,0.31130936]
[1645218981508,0.00074904,40048.0,40047.0,0.57588551]
[1645218981907,0.00074904,40048.0,40047.0,0.31130936]
[1645218982107,0.00074904,40048.0,40047.0,0.57588551]
[1645218982307,0.00074904,40048.0,40047.0,0.31130936]
[1645218983159,0.00074904,40048.0,40047.0,0.57588551]
[1645218983559,0.00074904,40048.0,40047.0,0.31130936]
[1645218984361,0.00074904,40048.0,40047.0,0.57588551]
[1645218984961,0.00074904,40048.0,40047.0,0.31130936]
[1645218986165,0.00074904,40048.0,40047.0,1.83525557]
[1645218986365,0.00033618,40052.0,40047.0,1.26235378]
[1645218986567,6.73e-05,40053.0,40051.0,1.1258415]
[1645218986812,6.73e-05,40053.0,40052.0,0.0499]
[1645218987008,0.012729,40069.0,40056.0,0.7616]
[1645218987210,0.001,40074.0,40070.0,0.29018899]
[1645218987608,0.001,40074.0,40071.0,0.062397]
[1645218987807,0.001,40074.0,40072.0,0.009]
[1645218988010,0.001,40074.0,40073.0,0.124773]
[1645218988211,0.001,40074.0,40073.0,0.45782908]
[1645218988610,0.5303,40084.0,40075.0,0.9116]
[1645218988810,0.5303,40084.0,40080.0,0.7616]
[1645218989010,0.5303,40084.0,40078.0,0.7]
[1645218989011,0.5303,40084.0,40081.0,0.20195818]
[1645218989209,0.5303,40084.0,40081.0,0.15205818]
[1645218989408,0.001,40086.0,40082.0,0.0999]
[1645218989611,0.001,40086.0,40084.0,0.1]
[1645218989811,0.001,40086.0,40083.0,0.12201593]
[1645218989812,0.001,40086.0,40085.0,0.823964]
[1645218990112,0.001,40086.0,40085.0,1.073864]
[1645218990309,2.413e-05,40087.0,40086.0,2.1616]
[1645218990561,2.413e-05,40087.0,40086.0,2.56566831]
[1645218990865,0.01,40089.0,40087.0,1.9616]
[1645218991060,0.001,40093.0,40088.0,2.88931828]
[1645218991268,0.5324,40101.0,40094.0,0.7616]
[1645218991462,0.5324,40101.0,40098.0,0.8616]
[1645218991662,0.5324,40101.0,40098.0,0.9115]
[1645218991861,0.5324,40101.0,40098.0,1.2615]
[1645218991862,0.0021,40101.0,40098.0,1.2615]
[1645218992063,0.0021,40101.0,40100.0,0.7616]
[1645218992362,1.4237,40121.0,40102.0,0.7616]
[1645218992560,1.4237,40121.0,40107.0,0.7616]
[1645218992759,1.4237,40121.0,40108.0,0.0592]
[1645218992760,0.19982525,40117.0,40108.0,0.0592]
[1645218992960,0.005138,40109.0,40108.0,0.0592]
[1645218993160,0.005414,40109.0,40108.0,0.0592]
[1645218995211,0.005414,40109.0,40108.0,0.0552]
[1645218996415,0.32576055,40121.0,40109.0,0.85]
[1645218996613,0.000552,40109.0,40108.0,0.0552]
[1645218996812,2e-06,40109.0,40108.0,0.0552]
[1645218997016,7.257e-05,40111.0,40108.0,1.12053858]
[1645218997213,0.001104,40109.0,40108.0,1.12053858]
[1645218997414,0.001104,40109.0,40108.0,1.0168]
[1645218997616,0.00029018,40125.0,40109.0,2.1616]
[1645218997812,0.361,40136.0,40114.0,0.7616]
[1645218998058,0.29465247,40132.0,40116.0,0.010219]
[1645218998259,0.361,40136.0,40117.0,0.8115]
[1645218998564,0.361,40136.0,40119.0,0.06230748]
[1645218998761,0.54700965,40136.0,40122.0,0.062301]
[1645218998966,0.4433,40143.0,40127.0,0.010219]
[1645218999161,0.7458,40145.0,40128.0,0.0499]
[1645218999162,0.2418,40145.0,40128.0,0.0499]
[1645218999360,0.2418,40145.0,40128.0,0.30121138]
[1645218999361,0.00011163,40132.0,40128.0,0.30121138]
[1645218999559,0.00011163,40132.0,40128.0,0.35039214]
[1645218999759,0.00011163,40132.0,40128.0,0.56268814]
[1645218999960,0.00011163,40132.0,40128.0,0.11137676]
[1645219000162,0.21186987,40136.0,40128.0,0.04908076]
[1645219000561,7.307e-05,40131.0,40128.0,0.04908076]
[1645219001165,0.13472498,40130.0,40128.0,0.04908076]
[1645219001820,7.06e-05,40131.0,40128.0,0.04908076]
[1645219002612,0.21186987,40136.0,40128.0,0.04908076]
[1645219002815,0.21186987,40136.0,40121.0,0.122436]
[1645219002816,0.15821731,40130.0,40121.0,0.122436]
[1645219003215,0.15821731,40130.0,40114.0,0.1979]
[1645219003414,0.25643306,40121.0,40114.0,0.1979]
[1645219003616,0.0195,40129.0,40114.0,0.1979]
[1645219003821,0.01,40129.0,40115.0,0.30373858]
[1645219004015,0.01,40129.0,40107.0,0.7]
[1645219004016,7.061e-05,40123.0,40120.0,0.28575421]
[1645219004215,7.061e-05,40123.0,40120.0,0.0098]
[1645219005016,0.1313813,40124.0,40120.0,0.0098]
[1645219005562,0.13145432,40124.0,40120.0,0.0098]
[1645219006157,0.1313813,40124.0,40120.0,0.0098]
[1645219006362,0.13145432,40124.0,40120.0,0.0098]
[1645219006557,0.13145432,40124.0,40116.0,0.010219]
[1645219007359,0.1313813,40124.0,40116.0,0.010219]
[1645219007560,0.23465653,40120.0,40116.0,0.010219]
[1645219008762,0.23472974,40120.0,40116.0,0.010219]
[1645219008965,7.321e-05,40120.0,40116.0,0.010219]
[1645219009707,0.01,40129.0,40116.0,0.010219]
[1645219009907,0.21336792,40124.0,40119.0,0.010219]
[1645219010108,7.321e-05,40120.0,40119.0,0.010219]
[1645219010907,0.21336792,40124.0,40116.0,0.010219]
[1645219011309,0.1459784,40119.0,40118.0,0.00600766]
[1645219011909,7.321e-05,40122.0,40118.0,0.00600766]
[1645219012208,0.21336792,40124.0,40118.0,0.00600766]
[1645219012408,7.321e-05,40122.0,40118.0,0.00600766]
[1645219013063,7.321e-05,40122.0,40116.0,0.010219]
[1645219013264,7.321e-05,40122.0,40113.0,0.010219]
[1645219013265,0.1499,40121.0,40113.0,0.010219]
[1645219013464,0.0094,40120.0,40110.0,0.010219]
[1645219013664,0.0499,40119.0,40107.0,0.010219]
[1645219013862,0.0499,40119.0,40109.0,0.010219]
[1645219014070,0.57589191,40110.0,40109.0,0.010219]
[1645219014263,0.15195622,40111.0,40107.0,0.010219]
[1645219014264,0.21431322,40111.0,40107.0,0.010219]
[1645219014463,0.21431322,40111.0,40101.0,0.3051812]
[1645219014464,0.21431322,40111.0,40104.0,0.010219]
[1645219014663,0.0499,40110.0,40104.0,0.010219]
[1645219015464,0.36609858,40109.0,40104.0,0.010219]
[1645219015664,0.53361666,40107.0,40098.0,0.32825015]
[1645219015865,0.35363858,40106.0,40099.0,0.15052111]
[1645219016064,0.0499,40106.0,40099.0,0.15052111]
[1645219016265,0.0499,40106.0,40099.0,0.27521411]
[1645219016670,0.04997322,40113.0,40100.0,0.05]
[1645219016916,0.04997322,40113.0,40101.0,0.009]
[1645219017116,0.20148168,40111.0,40101.0,0.071351]
[1645219017318,0.20148168,40111.0,40102.0,0.010219]
[1645219018516,0.11366071,40107.0,40102.0,0.010219]
[1645219019715,0.0003345,40109.0,40102.0,0.010219]
[1645219019918,0.30407308,40110.0,40102.0,0.010219]
[1645219020116,0.0003345,40109.0,40102.0,0.010219]
[1645219020319,0.30407308,40110.0,40102.0,0.010219]
[1645219020558,0.0003345,40109.0,40102.0,0.010219]
[1645219020754,0.15162269,40107.0,40102.0,0.010219]
[1645219022363,0.0003345,40109.0,40102.0,0.010219]
[1645219022555,0.30593053,40110.0,40102.0,0.072568]
[1645219022556,0.30626503,40110.0,40102.0,0.072568]
[1645219022755,0.0003345,40109.0,40102.0,0.072568]
[1645219022959,0.30626503,40110.0,40102.0,0.072568]
[1645219023158,0.0003345,40109.0,40102.0,0.072568]
[1645219023355,0.15658243,40109.0,40102.0,0.010219]
[1645219023556,0.15691693,40109.0,40102.0,0.010219]
[1645219026012,0.00283105,40106.0,40102.0,0.010219]
[1645219026412,0.00316555,40106.0,40102.0,0.010219]
[1645219027013,0.011438,40101.0,40100.0,0.0375935]
[1645219027412,0.011438,40101.0,40099.0,0.124693]
[1645219028860,0.011438,40101.0,40098.0,0.31803115]
[1645219030161,0.011438,40101.0,40099.0,0.062351]
[1645219031062,0.01652362,40101.0,40099.0,0.062351]
[1645219032717,0.01652362,40101.0,40098.0,0.32713115]
[1645219033217,0.01652362,40101.0,40098.0,0.32213115]
[1645219034317,0.01652362,40101.0,40099.0,0.062351]
[1645219034828,0.01370609,40101.0,40099.0,0.062351]
[1645219035021,0.01229742,40101.0,40100.0,0.7616]
[1645219035566,0.01229742,40101.0,40100.0,0.9116]
[1645219035765,0.01229742,40101.0,40100.0,0.9616]
[1645219035967,0.01085726,40101.0,40100.0,0.96483656]
[1645219038569,0.01085726,40101.0,40100.0,0.20323656]
[1645219038773,0.01085726,40101.0,40100.0,0.00323656]
[1645219039821,0.01085726,40101.0,40100.0,0.06558456]
[1645219040620,0.01085726,40101.0,40100.0,0.0051674]
[1645219042021,0.01085726,40101.0,40100.0,0.0675154]
[1645219042625,0.01085726,40101.0,40100.0,0.0051674]
[1645219045565,0.13197118,40104.0,40100.0,0.0051674]
[1645219045963,0.30236142,40103.0,40100.0,0.0051674]
[1645219046164,0.30236142,40103.0,40100.0,0.00521436]
[1645219046165,0.35226142,40103.0,40100.0,0.00521436]
[1645219047210,0.36472578,40103.0,40100.0,0.00521436]
[1645219048111,0.46472578,40103.0,40100.0,0.00521436]
[1645219048912,0.13197118,40104.0,40100.0,0.00521436]
[1645219049111,0.31186142,40109.0,40100.0,0.00521436]
[1645219049911,0.31186142,40109.0,40100.0,0.27805275]
[1645219049912,0.24545559,40108.0,40100.0,0.27805275]
[1645219050111,0.39014429,40108.0,40100.0,0.27805275]
[1645219050318,0.1,40107.0,40100.0,0.00521436]
[1645219050763,0.00360996,40102.0,40097.0,0.062357]
[1645219051263,0.00360996,40102.0,40098.0,0.34542919]
[1645219054911,0.00360996,40102.0,40098.0,0.66168576]
[1645219055112,0.00360996,40102.0,40099.0,0.0097]
[1645219055515,0.00360996,40102.0,40099.0,0.32595657]
[1645219055712,0.00116324,40101.0,40100.0,0.112333]
[1645219055913,0.00116324,40101.0,40100.0,0.36625657]
[1645219056313,0.00116324,40101.0,40100.0,0.46625657]
[1645219057115,0.00116324,40101.0,40100.0,0.46612468]
[1645219057513,0.00116324,40101.0,40100.0,0.15]
[1645219057913,0.00116324,40101.0,40100.0,0.05]
[1645219058361,0.00116324,40101.0,40099.0,0.0097]
[1645219058560,0.00116324,40101.0,40099.0,0.43788915]
[1645219058763,0.00116324,40101.0,40099.0,0.37563517]
[1645219058961,0.00116324,40101.0,40099.0,0.1097]
[1645219059861,0.00116324,40101.0,40099.0,0.0097]
[1645219060464,0.00239737,40102.0,40099.0,0.0097]
[1645219061460,0.00242009,40101.0,40099.0,0.0097]
[1645219062318,0.00242009,40101.0,40099.0,0.37563517]
[1645219062516,0.00242009,40101.0,40099.0,0.8713]
[1645219062916,0.00242009,40101.0,40100.0,0.4175405]
[1645219063119,0.00242009,40101.0,40100.0,1.1791405]
[1645219063316,0.00242009,40101.0,40100.0,1.11094818]
[1645219063521,0.26261975,40120.0,40110.0,0.25545286]
[1645219063722,0.2119626,40124.0,40113.0,0.7616]
[1645219063923,0.22169626,40129.0,40115.0,0.7616]
[1645219064118,0.01,40129.0,40118.0,0.7616]
[1645219064318,0.01,40129.0,40118.0,1.17768969]
[1645219064517,0.01,40129.0,40119.0,0.7616]
[1645219064820,0.01,40129.0,40128.0,0.29010285]
[1645219065019,0.01,40129.0,40128.0,0.35240885]
[1645219065217,0.01,40129.0,40128.0,0.062306]
[1645219065666,0.01,40129.0,40126.0,0.124611]
[1645219065967,0.01,40129.0,40122.0,0.0098]
[1645219066368,0.15451759,40125.0,40122.0,0.0098]
[1645219066866,0.15451759,40125.0,40119.0,0.124635]
[1645219066867,0.34352471,40125.0,40119.0,0.124635]
[1645219067167,0.34352471,40125.0,40117.0,0.1]
[1645219067366,0.34352471,40125.0,40117.0,0.05]
[1645219067567,0.34352471,40125.0,40118.0,0.32057882]
[1645219068169,0.34352471,40125.0,40117.0,0.05]
[1645219068375,0.50585417,40125.0,40117.0,0.05]
[1645219068676,0.40585417,40125.0,40117.0,0.05]
[1645219069170,0.15804167,40118.0,40117.0,0.05]
[1645219069616,0.06233403,40123.0,40114.0,0.0096]
[1645219070417,0.28005273,40121.0,40114.0,0.0096]
[1645219070616,0.13327257,40118.0,40114.0,0.0096]
[1645219070817,0.33255379,40118.0,40114.0,0.0096]
[1645219071021,0.33255379,40118.0,40110.0,0.072307]
[1645219071222,0.33255379,40118.0,40110.0,0.062337]
[1645219071423,0.33262754,40118.0,40110.0,0.062337]
[1645219071618,0.19935497,40118.0,40110.0,0.062337]
[1645219071819,0.19935497,40118.0,40110.0,0.31151376]
[1645219072519,7.375e-05,40116.0,40110.0,0.31151376]
[1645219073167,7.375e-05,40116.0,40110.0,0.062337]
[1645219073569,0.19928122,40118.0,40110.0,0.062337]
[1645219073771,7.375e-05,40115.0,40110.0,0.062337]
[1645219074668,0.19928122,40118.0,40108.0,0.0596]
[1645219074869,0.19928122,40118.0,40109.0,0.009971]
[1645219074870,0.13996462,40112.0,40109.0,0.009971]
[1645219075069,0.13996462,40112.0,40108.0,0.0596]
[1645219075671,0.19651211,40111.0,40108.0,0.0596]
[1645219076070,0.25886369,40111.0,40108.0,0.05]
[1645219076273,0.19651211,40111.0,40108.0,0.05]
[1645219076916,0.19642988,40111.0,40108.0,0.05]
[1645219077318,0.19454497,40111.0,40108.0,0.05]
[1645219078619,0.13996462,40112.0,40108.0,0.05]
[1645219080323,7.371e-05,40114.0,40108.0,0.05]
[1645219080574,7.371e-05,40114.0,40109.0,0.062339]
[1645219080775,0.0099,40117.0,40109.0,0.062339]
[1645219080973,7.371e-05,40114.0,40109.0,0.062339]
[1645219081376,0.0018482,40110.0,40109.0,0.062339]
[1645219081573,0.00049516,40110.0,40109.0,0.37022758]
[1645219082374,0.00049516,40110.0,40109.0,0.062339]
[1645219083476,0.00049516,40110.0,40109.0,0.09892135]
[1645219084322,0.00049516,40110.0,40109.0,0.062339]
[1645219085914,0.00204827,40110.0,40109.0,0.062339]
[1645219089171,0.00204827,40110.0,40108.0,0.05]
[1645219090371,0.14314464,40109.0,40108.0,0.05]
[1645219092422,0.14314464,40109.0,40104.0,0.019619]
[1645219093123,0.00305732,40110.0,40105.0,0.124679]
[1645219093523,0.00305732,40110.0,40106.0,0.010219]
[1645219093724,0.0099,40117.0,40108.0,0.06234]
[1645219093923,0.0099,40117.0,40110.0,0.010219]
[1645219094123,0.1506294,40117.0,40110.0,0.010219]
[1645219094724,0.74981118,40117.0,40110.0,0.010219]
[1645219095127,0.74981118,40117.0,40108.0,0.072559]
[1645219095327,0.74981118,40117.0,40108.0,0.010219]
[1645219096467,0.81215447,40117.0,40108.0,0.01810736]
[1645219097468,0.11968734,40110.0,40108.0,0.01810736]
[1645219097669,0.11968734,40110.0,40108.0,0.00788836]